bitfinex/quotes_BTCUSD_20250221
["timestamp","ask_amount","ask_price","bid_price","bid_amount"]
[1740149059273,5.5e-07,98731.0,98726.0,0.08107711]
[1740149059457,0.00013107,98731.0,98727.0,0.02836611]
[1740149059663,0.00013107,98731.0,98730.0,0.001]
[1740149059889,0.00013107,98731.0,98726.0,0.08107711]
[1740149060104,0.00013107,98731.0,98729.0,0.151929]
[1740149060417,0.00013107,98731.0,98730.0,0.151929]
[1740149061655,0.00013107,98731.0,98730.0,0.154929]
[1740149061898,0.00013107,98731.0,98730.0,0.23950381]
[1740149062823,0.00013107,98731.0,98730.0,0.24450381]
[1740149063018,0.00013107,98731.0,98730.0,0.24150381]
[1740149063227,0.00013107,98731.0,98730.0,0.23650381]
[1740149063461,0.00013107,98731.0,98730.0,0.24350381]
[1740149064220,0.00013107,98731.0,98730.0,0.3481495]
[1740149064542,0.00013107,98731.0,98730.0,0.3391495]
[1740149065009,0.00013107,98731.0,98730.0,0.3451495]
[1740149065244,0.00013107,98731.0,98730.0,0.3391495]
[1740149065372,7e-08,98731.0,98730.0,0.7108495]
[1740149065583,7e-08,98731.0,98730.0,0.8003495]
[1740149065985,0.0008507,98749.0,98748.0,0.151901]
[1740149066188,0.0008507,98749.0,98748.0,0.4638238]
[1740149067159,0.0002,98769.0,98748.0,0.4638238]
[1740149067160,0.0002,98769.0,98767.0,0.199472]
[1740149067389,0.00098187,98768.0,98767.0,0.3831948]
[1740149067561,0.00098187,98768.0,98767.0,0.44881676]
[1740149067921,2.7e-07,98777.0,98776.0,0.151858]
[1740149068124,2.7e-07,98777.0,98776.0,0.57950369]
[1740149069222,6e-07,98782.0,98781.0,0.151851]
[1740149069449,6e-07,98782.0,98781.0,0.35997044]
[1740149069670,6e-07,98782.0,98781.0,0.35875608]
[1740149070181,6e-07,98782.0,98781.0,0.51847509]
[1740149070356,9.4e-07,98795.0,98793.0,0.151832]
[1740149070554,0.01212513,98807.0,98806.0,0.151812]
[1740149070767,6e-07,98824.0,98823.0,0.151786]
[1740149070930,0.00043569,98824.0,98823.0,0.33836261]
[1740149071162,6.9e-07,98824.0,98823.0,0.46112996]
[1740149071581,6.9e-07,98824.0,98823.0,0.47004996]
[1740149071787,6.9e-07,98824.0,98823.0,0.51126624]
[1740149072001,6.9e-07,98824.0,98823.0,0.66126624]
[1740149072208,6.9e-07,98824.0,98823.0,0.60704996]
[1740149072447,6.9e-07,98824.0,98823.0,0.57340879]
[1740149072648,0.00081099,98830.0,98829.0,0.151777]
[1740149072851,0.00094143,98830.0,98829.0,0.35706838]
[1740149073056,0.00094143,98830.0,98829.0,0.25442269]
[1740149073787,0.00094143,98830.0,98829.0,0.26142269]
[1740149074634,0.00094143,98830.0,98829.0,0.36406838]
[1740149074832,0.00094143,98830.0,98829.0,0.11564569]
[1740149075035,0.00094143,98830.0,98829.0,0.006]
[1740149075221,0.00094143,98830.0,98829.0,0.157777]
[1740149075415,0.00094143,98830.0,98829.0,0.164777]
[1740149075808,0.00094143,98830.0,98829.0,0.26742269]
[1740149076990,0.00094143,98830.0,98829.0,0.26042269]
[1740149077197,0.00094143,98830.0,98829.0,0.3628767]
[1740149077426,0.00094143,98830.0,98829.0,0.3568767]
[1740149077639,0.00094143,98830.0,98829.0,0.3638767]
[1740149078018,0.00094143,98830.0,98829.0,0.26123101]
[1740149078641,0.00094143,98830.0,98829.0,0.007]
[1740149078815,0.00094143,98830.0,98829.0,0.014]
[1740149079361,0.00094143,98830.0,98829.0,0.007]
[1740149079535,0.00094143,98830.0,98829.0,0.014]
[1740149079938,0.00094143,98830.0,98829.0,0.007]
[1740149080155,0.00094143,98830.0,98829.0,0.1797145]
[1740149080327,0.00094143,98830.0,98829.0,0.1777145]
[1740149080535,0.00094143,98830.0,98829.0,0.1837145]
[1740149080957,0.00094143,98830.0,98829.0,0.1777145]
[1740149081384,0.00094143,98830.0,98829.0,0.1797145]
[1740149082241,0.00094143,98830.0,98829.0,0.1747145]
[1740149082453,0.00094143,98830.0,98829.0,0.1817145]
[1740149082667,0.00094143,98830.0,98829.0,0.18292854]
[1740149083038,0.00094143,98830.0,98829.0,0.27736019]
[1740149083444,0.00094143,98830.0,98829.0,0.28236019]
[1740149083659,0.00094143,98830.0,98829.0,0.28836019]
[1740149084085,0.00094143,98830.0,98829.0,0.28236019]
[1740149084219,0.00094143,98830.0,98829.0,0.28936019]
[1740149084641,0.00094143,98830.0,98829.0,0.28236019]
[1740149085092,0.00094143,98830.0,98829.0,0.1867145]
[1740149085511,0.00094143,98830.0,98829.0,0.1797145]
[1740149085712,0.00094143,98830.0,98829.0,0.28236019]
[1740149085929,0.00094143,98830.0,98829.0,0.28936019]
[1740149086847,0.00094143,98830.0,98829.0,0.28236019]
[1740149087086,0.00094143,98830.0,98829.0,0.27536019]
[1740149087611,0.00094143,98830.0,98829.0,0.28236019]
[1740149088075,0.00094143,98830.0,98829.0,0.28936019]
[1740149090379,0.00094143,98830.0,98829.0,0.41586019]
[1740149090620,0.00094143,98830.0,98829.0,0.40886019]
[1740149091100,0.00094143,98830.0,98829.0,0.41586019]
[1740149091363,0.00094143,98830.0,98829.0,0.40186019]
[1740149091568,0.00094143,98830.0,98829.0,0.41586019]
[1740149091975,0.00094143,98830.0,98829.0,0.40886019]
[1740149092208,0.00094143,98830.0,98829.0,0.41586019]
[1740149092890,0.00094143,98830.0,98829.0,0.32166019]
[1740149093114,0.00094143,98830.0,98829.0,0.014]
[1740149093370,0.00094143,98830.0,98829.0,0.007]
[1740149093772,0.00094143,98830.0,98829.0,0.014]
[1740149093984,0.15094143,98830.0,98829.0,0.007]
[1740149094387,0.15094143,98830.0,98829.0,0.006]
[1740149094592,0.301784,98824.0,98799.0,0.22736]
[1740149094874,0.301784,98824.0,98784.0,0.0782]
[1740149095085,0.382984,98824.0,98797.0,0.151826]
[1740149095356,0.382984,98824.0,98799.0,0.151822]
[1740149095538,0.382984,98824.0,98792.0,0.151833]
[1740149095726,0.382984,98824.0,98794.0,0.151829]
[1740149096053,0.50017054,98824.0,98789.0,0.151837]
[1740149096171,0.50017054,98824.0,98823.0,0.003699]
[1740149099421,0.50991351,98824.0,98823.0,0.003699]
[1740149100403,0.00094143,98830.0,98829.0,0.151777]
[1740149100611,0.00094143,98830.0,98829.0,0.26997029]
[1740149100811,0.00094143,98830.0,98829.0,0.34877029]
[1740149101013,0.00094143,98830.0,98829.0,0.26997029]
[1740149101142,0.00094143,98830.0,98828.0,0.08094749]
[1740149101344,0.00094143,98830.0,98823.0,0.001699]
[1740149101591,0.00094143,98830.0,98823.0,0.005699]
[1740149101971,0.15,98829.0,98823.0,0.001699]
[1740149102178,0.301784,98824.0,98823.0,0.001699]
[1740149102381,0.26718654,98824.0,98823.0,0.002699]
[1740149102567,0.15,98824.0,98823.0,0.002699]
[1740149102802,0.00094143,98830.0,98823.0,0.001699]
[1740149103008,0.00094143,98830.0,98824.0,0.08094749]
[1740149103223,0.00094143,98830.0,98829.0,0.151777]
[1740149103625,0.00094143,98830.0,98825.0,0.02890355]
[1740149104018,0.00094143,98830.0,98823.0,0.008699]
[1740149104429,0.03104877,98829.0,98823.0,0.001699]
[1740149104635,0.151779,98828.0,98823.0,0.001699]
[1740149104909,0.03104877,98827.0,98823.0,0.001699]
[1740149105111,0.15,98825.0,98823.0,0.001699]
[1740149105327,0.301783,98825.0,98824.0,0.004]
[1740149105505,0.15,98825.0,98823.0,0.005699]
[1740149105937,0.00094143,98830.0,98823.0,0.005699]
[1740149105938,0.15,98824.0,98823.0,0.006699]
[1740149106158,0.301784,98824.0,98823.0,0.005699]
[1740149106372,0.15,98824.0,98823.0,0.005699]
[1740149106588,0.301784,98824.0,98823.0,0.005699]
[1740149106793,0.301784,98824.0,98823.0,0.001699]
[1740149107003,0.40442969,98824.0,98823.0,0.003699]
[1740149107213,0.58764497,98824.0,98823.0,0.005]
[1740149107420,0.62764497,98824.0,98823.0,0.001602]
[1740149107632,0.151832,98794.0,98782.0,0.151849]
[1740149107838,0.15,98793.0,98783.0,0.151847]
[1740149108067,0.15,98793.0,98784.0,0.151846]
[1740149108293,0.15,98793.0,98785.0,0.1872753]
[1740149108502,0.15,98793.0,98787.0,0.15184]
[1740149108707,0.15,98793.0,98787.0,0.151841]
[1740149108922,0.15,98797.0,98789.0,0.151837]
[1740149109135,0.33325569,98824.0,98823.0,0.003]
[1740149109346,0.31194969,98824.0,98823.0,0.003]
[1740149109555,0.15,98807.0,98794.0,0.15183]
[1740149109764,0.01454085,98813.0,98795.0,0.17510575]
[1740149109977,0.15,98803.0,98795.0,0.02327775]
[1740149110194,0.15,98798.0,98795.0,0.02327775]
[1740149110405,0.301828,98796.0,98788.0,0.28339849]
[1740149110612,0.151838,98790.0,98788.0,0.08094749]
[1740149110829,0.202439,98795.0,98788.0,0.08094749]
[1740149111049,0.00013037,98798.0,98790.0,0.202449]
[1740149111256,0.00013037,98798.0,98796.0,0.151827]
[1740149111470,0.00013037,98798.0,98797.0,0.00121449]
[1740149111683,0.00013037,98798.0,98797.0,0.14794569]
[1740149111862,0.00013037,98798.0,98797.0,0.14916012]
[1740149112137,0.00013037,98798.0,98797.0,0.24781173]
[1740149112353,0.00013037,98798.0,98797.0,0.2465973]
[1740149112796,0.00013037,98798.0,98797.0,0.2495973]
[1740149113206,0.00013037,98798.0,98797.0,0.2465973]
[1740149114126,0.00013037,98798.0,98797.0,0.2535973]
[1740149114624,0.00013037,98798.0,98797.0,0.2465973]
[1740149114875,0.00081099,98830.0,98829.0,0.151777]
[1740149115147,0.00094134,98830.0,98829.0,0.31128917]
[1740149115438,0.00094134,98830.0,98829.0,0.31007519]
[1740149115590,0.00094134,98830.0,98829.0,0.35727519]
[1740149116716,0.00094134,98830.0,98829.0,0.36427519]
[1740149116926,0.00094134,98830.0,98829.0,0.31707519]
[1740149117348,0.00094134,98830.0,98829.0,0.32407519]
[1740149118029,0.00094134,98830.0,98829.0,0.31007519]
[1740149118244,0.00094134,98830.0,98829.0,0.32407519]
[1740149118465,0.00094134,98830.0,98829.0,0.31707519]
[1740149118871,0.00094134,98830.0,98829.0,0.32407519]
[1740149120216,0.00094134,98830.0,98829.0,0.31707519]
[1740149120421,0.00094134,98830.0,98829.0,0.32407519]
[1740149120853,3.4e-07,98830.0,98829.0,0.48711261]
[1740149121483,0.0002,98849.0,98848.0,0.151748]
[1740149121664,0.0002,98849.0,98848.0,0.27078202]
[1740149121879,1e-06,98849.0,98848.0,0.26956849]
[1740149122110,1e-07,98867.0,98866.0,0.32172]
[1740149122318,0.0002,98889.0,98866.0,0.32172]
[1740149122319,0.0002,98889.0,98888.0,0.151686]
[1740149122528,1e-06,98889.0,98888.0,0.40433169]
[1740149122735,0.004052,98936.0,98905.0,0.15166]
[1740149122944,7.9e-07,98914.0,98913.0,0.151648]
[1740149123151,0.02,98984.0,98917.0,0.151642]
[1740149123152,7.9e-07,98918.0,98917.0,0.151642]
[1740149123861,7.9e-07,98918.0,98917.0,0.10264569]
[1740149124305,7.9e-07,98918.0,98913.0,0.007]
[1740149124506,0.151646,98914.0,98913.0,0.007]
[1740149124715,0.2363632,98900.0,98860.0,0.00121342]
[1740149124928,0.030394,98914.0,98864.0,0.32366879]
[1740149125134,0.151654,98909.0,98888.0,0.007]
[1740149125338,0.151671,98899.0,98864.0,0.32366879]
[1740149125600,0.202203,98911.0,98889.0,0.10264569]
[1740149125813,0.01454085,98909.0,98874.0,0.32366879]
[1740149126031,0.202252,98887.0,98875.0,0.42631448]
[1740149126234,0.151704,98877.0,98875.0,0.10264569]
[1740149126447,0.151703,98878.0,98876.0,0.01026457]
[1740149126666,0.202249,98888.0,98845.0,0.00121363]
[1740149126875,0.151713,98871.0,98850.0,0.202326]
[1740149127108,0.15,98887.0,98852.0,0.202322]
[1740149127329,0.151738,98855.0,98853.0,0.10264569]
[1740149127537,0.11718654,98886.0,98848.0,0.01530517]
[1740149127538,0.151746,98849.0,98848.0,0.00013037]
[1740149127952,0.36397782,98880.0,98848.0,0.00013037]
[1740149128197,0.15,98879.0,98848.0,0.00013037]
[1740149128419,0.030404,98873.0,98852.0,0.001]
[1740149128623,0.36397782,98890.0,98853.0,0.12123702]
[1740149128833,0.26718654,98889.0,98853.0,0.1130233]
[1740149129038,0.16454085,98882.0,98854.0,0.00121372]
[1740149129258,0.16454085,98882.0,98853.0,0.1130233]
[1740149129259,0.202302,98862.0,98853.0,0.01037761]
[1740149129477,0.202302,98862.0,98852.0,0.001]
[1740149129690,0.202302,98862.0,98848.0,0.00013037]
[1740149129899,0.006,98866.0,98848.0,0.00113037]
[1740149130318,0.15,98876.0,98849.0,0.10264569]
[1740149130523,0.151746,98849.0,98848.0,0.00013037]
[1740149130677,0.15,98869.0,98848.0,0.00013037]
[1740149130887,0.151746,98850.0,98848.0,0.00013037]
[1740149131096,0.25264569,98869.0,98848.0,0.00013037]
[1740149131296,0.0008497,98879.0,98848.0,0.00013037]
[1740149131297,0.15,98867.0,98848.0,0.00013037]
[1740149131498,0.151745,98850.0,98848.0,0.00013037]
[1740149133385,0.002,98869.0,98848.0,0.00013037]
[1740149133591,0.002,98869.0,98851.0,0.151742]
[1740149133798,0.154,98867.0,98852.0,0.10635182]
[1740149134008,0.154,98867.0,98852.0,0.0266656]
[1740149134220,0.154,98867.0,98848.0,0.00313037]
[1740149134434,0.0008497,98879.0,98849.0,0.1835457]
[1740149134647,0.0008497,98879.0,98868.0,0.151716]
[1740149134868,0.0008497,98879.0,98858.0,0.20231]
[1740149135070,0.0008497,98879.0,98877.0,0.151703]
[1740149135281,0.0008497,98879.0,98878.0,0.0151703]
[1740149135901,0.0018497,98879.0,98878.0,0.0151703]
[1740149136520,0.0018497,98879.0,98878.0,0.01530067]
[1740149136521,0.0068497,98879.0,98878.0,0.01530067]
[1740149136723,0.0068497,98879.0,98878.0,0.19884637]
[1740149136905,0.0018497,98879.0,98878.0,0.20005976]
[1740149137115,0.0008497,98879.0,98878.0,0.20005976]
[1740149137325,0.0018497,98879.0,98878.0,0.20384637]
[1740149137531,0.0018497,98879.0,98878.0,0.35954837]
[1740149137532,0.0028497,98879.0,98878.0,0.35954837]
[1740149137738,0.0018497,98879.0,98878.0,0.35454837]
[1740149137952,0.0028497,98879.0,98878.0,0.35554837]
[1740149138362,0.0018497,98879.0,98878.0,0.35154837]
[1740149138586,0.0028497,98879.0,98878.0,0.35154837]
[1740149138799,0.0018497,98879.0,98878.0,0.35154837]
[1740149139208,0.0028497,98879.0,98878.0,0.50154837]
[1740149139365,0.0018497,98879.0,98878.0,0.50054837]
[1740149139567,0.0018497,98879.0,98878.0,0.50754837]
[1740149139991,7e-07,98879.0,98878.0,0.50754837]
[1740149140196,7e-07,98879.0,98878.0,0.50054837]
[1740149140544,0.0010514,98929.0,98881.0,0.15]
[1740149140743,0.15,98924.0,98897.0,0.08090001]
[1740149141015,0.01454085,98922.0,98902.0,0.151664]
[1740149141218,0.15,98922.0,98912.0,0.151649]
[1740149141424,0.15,98920.0,98903.0,0.10385879]
[1740149141625,0.151645,98915.0,98904.0,0.202216]
[1740149141756,0.151642,98917.0,98906.0,0.151659]
[1740149141958,0.1508501,98923.0,98906.0,0.00121313]
[1740149142158,0.151647,98914.0,98907.0,0.151657]
[1740149142379,0.0008501,98923.0,98912.0,0.001]
[1740149142584,0.00128441,98923.0,98913.0,0.10264569]
[1740149142784,0.00128441,98923.0,98922.0,0.151634]
[1740149142993,0.00128441,98923.0,98922.0,0.25427969]
[1740149143974,0.00128441,98923.0,98914.0,0.09126458]
[1740149144186,0.00128441,98923.0,98922.0,0.007]
[1740149144405,0.15291741,98923.0,98922.0,0.007]
[1740149144614,0.15391741,98923.0,98922.0,0.01]
[1740149144821,0.15391741,98923.0,98922.0,0.007]
[1740149145229,0.15491741,98923.0,98922.0,0.007]
[1740149145498,0.15391741,98923.0,98922.0,0.007]
[1740149145725,0.00228441,98923.0,98922.0,0.007]
[1740149146163,0.00228441,98923.0,98922.0,0.158634]
[1740149146371,0.00228441,98923.0,98922.0,0.1754974]
[1740149146791,0.00228441,98923.0,98922.0,0.27935603]
[1740149147031,0.00228441,98923.0,98922.0,0.27114309]
[1740149147344,0.00228441,98923.0,98922.0,0.27814309]
[1740149147557,0.00128441,98923.0,98922.0,0.27714309]
[1740149147835,0.00128441,98923.0,98922.0,0.27314309]
[1740149148183,0.00128441,98923.0,98922.0,0.27614309]
[1740149148627,0.00128441,98923.0,98922.0,0.27014309]
[1740149148804,0.00228441,98923.0,98922.0,0.27714309]
[1740149148988,0.00228441,98923.0,98922.0,0.28414309]
[1740149149192,0.00128441,98923.0,98922.0,0.27714309]
[1740149149485,0.00228441,98923.0,98922.0,0.28414309]
[1740149149589,0.00228441,98923.0,98922.0,0.43414309]
[1740149150216,4.1e-07,98923.0,98922.0,0.42714309]
[1740149150474,8.1e-07,98929.0,98928.0,0.151625]
[1740149150670,0.00013105,98929.0,98928.0,0.3332085]
[1740149151731,0.00113105,98929.0,98928.0,0.3402085]
[1740149151936,0.00113105,98929.0,98928.0,0.3332085]
[1740149152108,0.00113105,98929.0,98928.0,0.3472085]
[1740149152433,0.00213105,98929.0,98928.0,0.3472085]
[1740149152632,0.00213105,98929.0,98928.0,0.1955835]
[1740149152834,0.00213105,98929.0,98928.0,0.11664569]
[1740149153177,0.00213105,98929.0,98928.0,0.11785841]
[1740149153384,0.00213105,98929.0,98928.0,0.10964569]
[1740149153577,0.00113105,98929.0,98928.0,0.11664569]
[1740149153788,0.00013105,98929.0,98928.0,0.007]
[1740149154001,0.00113105,98929.0,98928.0,0.007]
[1740149154202,0.00013105,98929.0,98928.0,0.0411354]
[1740149154403,0.00013105,98929.0,98928.0,0.007]
[1740149154603,0.00113105,98929.0,98928.0,0.014]
[1740149154872,0.00013105,98929.0,98921.0,0.151635]
[1740149155081,0.00013105,98929.0,98903.0,0.202217]
[1740149155352,0.00113105,98929.0,98928.0,0.006]
[1740149155568,0.00013105,98929.0,98928.0,0.006]
[1740149155767,0.00013105,98929.0,98928.0,0.011]
[1740149156371,0.15175405,98929.0,98928.0,0.005]
[1740149156730,0.30175405,98929.0,98928.0,0.005]
[1740149156934,0.151634,98922.0,98921.0,0.003]
[1740149157137,0.00013105,98929.0,98907.0,0.202208]
[1740149157347,0.151654,98909.0,98908.0,0.0232208]
[1740149157566,0.151654,98909.0,98900.0,0.02057488]
[1740149157567,0.00013105,98929.0,98900.0,0.02057488]
[1740149157775,0.15,98927.0,98901.0,0.10264569]
[1740149157971,0.00013105,98929.0,98901.0,0.10264569]
[1740149158388,0.00013105,98929.0,98907.0,0.003]
[1740149158591,0.151642,98917.0,98908.0,0.202208]
[1740149158795,0.151642,98917.0,98907.0,0.006]
[1740149158796,0.15,98927.0,98909.0,0.0208208]
[1740149159004,0.15013105,98929.0,98912.0,0.151649]
[1740149159212,0.151636,98921.0,98914.0,0.151646]
[1740149159419,0.00013105,98929.0,98907.0,0.003]
[1740149159633,0.151635,98922.0,98914.0,0.151646]
[1740149159823,0.151636,98921.0,98914.0,0.151646]
[1740149160031,0.151636,98921.0,98915.0,0.0353846]
[1740149160235,0.202169,98927.0,98915.0,0.0353846]
[1740149160236,0.00013105,98929.0,98915.0,0.0353846]
[1740149160424,0.151633,98923.0,98907.0,0.10264569]
[1740149160628,0.15,98924.0,98911.0,0.15165]
[1740149160802,0.15,98924.0,98907.0,0.10564569]
[1740149161022,0.15,98924.0,98912.0,0.151648]
[1740149161228,0.151638,98920.0,98913.0,0.151648]
[1740149161550,0.15,98924.0,98907.0,0.10264569]
[1740149161551,0.202177,98923.0,98914.0,0.04564947]
[1740149161722,0.20229605,98929.0,98914.0,0.04564947]
[1740149161932,0.15013105,98929.0,98907.0,0.002]
[1740149162141,0.151656,98908.0,98907.0,0.002]
[1740149163134,0.01013462,98911.0,98874.0,0.202277]
[1740149163348,0.15,98914.0,98879.0,0.10264569]
[1740149163349,0.23577472,98910.0,98879.0,0.10264569]
[1740149163613,0.15,98909.0,98880.0,0.0400993]
[1740149163811,0.352208,98908.0,98907.0,0.00069382]
[1740149164044,0.554416,98908.0,98907.0,0.00069382]
[1740149164248,0.15,98906.0,98881.0,0.10264569]
[1740149164415,0.151677,98895.0,98888.0,0.151685]
[1740149164629,0.15,98899.0,98893.0,0.151677]
[1740149164857,0.15,98899.0,98882.0,0.04410823]
[1740149165101,0.15,98899.0,98890.0,0.151682]
[1740149165313,0.001,98910.0,98891.0,0.10264569]
[1740149165534,0.001,98910.0,98891.0,0.10429336]
[1740149165736,0.23577472,98930.0,98891.0,0.10429336]
[1740149165737,0.001,98908.0,98891.0,0.10308]
[1740149165972,0.152656,98908.0,98902.0,0.151665]
[1740149166186,0.001,98906.0,98902.0,0.151665]
[1740149166389,0.001,98906.0,98903.0,0.035389]
[1740149166593,0.301654,98909.0,98903.0,0.187052]
[1740149166799,0.01001464,98927.0,98903.0,0.10264569]
[1740149167011,8.1e-07,98929.0,98904.0,0.10264569]
[1740149167230,8.1e-07,98929.0,98904.0,0.10385882]
[1740149167436,0.15000081,98929.0,98904.0,0.10264569]
[1740149167685,0.15000081,98929.0,98903.0,0.08090001]
[1740149167686,0.23577472,98920.0,98903.0,0.002]
[1740149167937,0.151662,98904.0,98903.0,0.002]
[1740149168426,0.301662,98904.0,98903.0,0.002]
[1740149169114,0.15,98904.0,98903.0,0.002]
[1740149169374,0.03039,98908.0,98903.0,0.0173671]
[1740149169575,0.03039,98908.0,98907.0,0.151657]
[1740149169796,0.151634,98923.0,98914.0,0.151645]
[1740149170134,0.15163,98925.0,98907.0,0.10264569]
[1740149170367,0.202169,98928.0,98908.0,0.13466907]
[1740149170570,8.1e-07,98929.0,98909.0,0.202206]
[1740149170778,0.15,98927.0,98910.0,0.10264569]
[1740149171028,0.180384,98927.0,98910.0,0.10264569]
[1740149171237,0.030384,98927.0,98926.0,0.151628]
[1740149171450,8.1e-07,98929.0,98927.0,0.151626]
[1740149171652,8.1e-07,98929.0,98928.0,0.151625]
[1740149171776,8.1e-07,98929.0,98928.0,0.25427069]
[1740149171986,8.1e-07,98929.0,98928.0,0.32013216]
[1740149172574,0.15175405,98929.0,98928.0,0.06586147]
[1740149172798,0.00013105,98929.0,98914.0,0.202194]
[1740149172999,0.00013105,98929.0,98915.0,0.10264569]
[1740149173226,0.00013105,98929.0,98927.0,0.151626]
[1740149173486,0.00013105,98929.0,98927.0,0.25327169]
[1740149173668,0.00013105,98929.0,98928.0,0.04554417]
[1740149173879,0.00013105,98929.0,98928.0,0.15140273]
[1740149174253,0.00013105,98929.0,98928.0,0.22908987]
[1740149174662,0.00013105,98929.0,98928.0,0.14818986]
[1740149174870,0.00013105,98929.0,98928.0,0.04554417]
[1740149175070,0.15175505,98929.0,98927.0,0.003]
[1740149175397,0.00013105,98929.0,98928.0,0.10264569]
[1740149175531,0.00013105,98929.0,98928.0,0.10385849]
[1740149176150,0.00013105,98929.0,98928.0,0.10785849]
[1740149176357,0.00013105,98929.0,98928.0,0.11364569]
[1740149176568,0.00013105,98929.0,98928.0,0.05374437]
[1740149176774,0.00013105,98929.0,98928.0,0.007]
[1740149176775,0.00113105,98929.0,98928.0,0.007]
[1740149177192,0.00013105,98929.0,98928.0,0.11085853]
[1740149177404,0.00013105,98929.0,98928.0,0.1987585]
[1740149177607,0.00013105,98929.0,98928.0,0.1917585]
[1740149177818,0.00013105,98929.0,98928.0,0.26553125]
[1740149178026,0.00013105,98929.0,98928.0,0.27031845]
[1740149179314,0.00013105,98929.0,98928.0,0.26431845]
[1740149179728,0.00113105,98929.0,98928.0,0.26531845]
[1740149180026,0.00013105,98929.0,98928.0,0.26531845]
[1740149180197,0.00013105,98929.0,98928.0,0.27231845]
[1740149180434,0.00113105,98929.0,98928.0,0.26531845]
[1740149180850,0.00113105,98929.0,98928.0,0.27231845]
[1740149181073,0.00013105,98929.0,98928.0,0.26531845]
[1740149181286,5e-08,98929.0,98928.0,0.41531845]
[1740149181490,0.00100005,98929.0,98928.0,0.41531845]
[1740149181697,0.00100005,98929.0,98928.0,0.42231845]
[1740149181915,0.00100005,98929.0,98928.0,0.42231845]
[1740149182560,5e-08,98929.0,98928.0,0.41531845]
[1740149182681,5e-08,98929.0,98928.0,0.55994345]
[1740149182888,0.00100005,98929.0,98928.0,0.56694345]
[1740149183217,0.00100005,98929.0,98928.0,0.56922345]
[1740149183380,0.00200005,98929.0,98928.0,0.58322345]
[1740149183944,0.00100005,98929.0,98928.0,0.56922345]
[1740149184168,5e-08,98929.0,98928.0,0.61850485]
[1740149184368,5e-08,98929.0,98928.0,0.6107643]
[1740149184831,5e-08,98929.0,98928.0,0.6037643]
[1740149185396,5e-08,98929.0,98928.0,0.56922345]
[1740149185624,5e-08,98929.0,98928.0,0.57622345]
[1740149185961,0.0008508,98949.0,98948.0,0.151594]
[1740149186183,0.0008508,98949.0,98948.0,0.29082545]
[1740149186392,0.0008508,98949.0,98948.0,0.28961309]
[1740149187354,0.0008508,98949.0,98948.0,0.29661309]
[1740149187549,0.0008508,98949.0,98948.0,0.30361309]
[1740149188817,0.0008508,98949.0,98948.0,0.29661309]
[1740149189214,0.0008508,98949.0,98948.0,0.28961309]
[1740149189479,0.0008508,98949.0,98948.0,0.29661309]
[1740149189699,0.0008508,98949.0,98948.0,0.30361309]
[1740149190141,0.0008508,98949.0,98948.0,0.29661309]
[1740149190361,0.0008508,98949.0,98948.0,0.30361309]
[1740149191050,0.00076027,98949.0,98948.0,0.15201909]
[1740149191286,0.00076027,98949.0,98948.0,0.26823969]
[1740149193844,0.00076027,98949.0,98948.0,0.28840271]
[1740149194046,0.00076027,98949.0,98948.0,0.28140271]
[1740149194989,0.00076027,98949.0,98948.0,0.27440271]
[1740149195201,0.00076027,98949.0,98948.0,0.28140271]
[1740149195413,0.00076027,98949.0,98948.0,0.35696968]
[1740149195629,0.00076027,98949.0,98948.0,0.34996968]
[1740149196264,0.00076027,98949.0,98948.0,0.35696968]
[1740149196506,0.0002,98969.0,98948.0,0.35696968]
[1740149196507,2.7e-07,98969.0,98968.0,0.151564]
[1740149196727,4.9e-07,98969.0,98968.0,0.40420969]
[1740149196945,4.9e-07,98989.0,98988.0,0.151533]
[1740149197154,0.0002,99009.0,98988.0,0.151533]
[1740149197155,4.9e-07,98997.0,98996.0,0.151521]
[1740149197356,3.9e-07,99004.0,99003.0,0.15151]
[1740149197594,3.9e-07,99004.0,99003.0,0.40415569]
[1740149197836,3.9e-07,99004.0,99003.0,0.47621094]
[1740149198084,0.08895358,99023.0,99012.0,0.33603685]
[1740149198323,0.07801137,99023.0,99022.0,0.15]
[1740149198534,0.00915003,99023.0,99022.0,1.59155952]
[1740149198737,0.00915003,99023.0,99022.0,0.11188569]
[1740149198952,0.00958418,99023.0,99022.0,0.17861886]
[1740149199365,0.00958418,99023.0,99022.0,0.16937886]
[1740149199584,0.00958418,99023.0,99022.0,0.17637886]
[1740149199802,0.00958418,99023.0,99022.0,0.18337886]
[1740149200013,0.00958418,99023.0,98989.0,0.00928]
[1740149200228,0.00958418,99023.0,99004.0,0.10264569]
[1740149200439,0.00958418,99023.0,99022.0,0.007]
[1740149201072,0.00958418,99023.0,99022.0,0.26112669]
[1740149201494,0.00958418,99023.0,99022.0,0.11664569]
[1740149201633,0.00958418,99023.0,98995.0,0.15]
[1740149201832,0.00958418,99023.0,99014.0,0.151492]
[1740149202037,0.00958418,99023.0,99022.0,0.003]
[1740149202248,0.00043415,99023.0,99015.0,0.10264569]
[1740149202459,0.00043415,99023.0,99022.0,0.007]
[1740149202652,0.00043415,99023.0,99022.0,0.11464569]
[1740149202858,0.00043415,99023.0,99022.0,0.03173384]
[1740149203270,0.00043415,99023.0,99014.0,0.004]
[1740149203486,0.15149,99016.0,99015.0,0.004]
[1740149203943,0.00043415,99023.0,99015.0,0.004]
[1740149204150,0.15149,99016.0,99015.0,0.004]
[1740149204356,0.00043415,99023.0,99015.0,0.004]
[1740149204595,0.15,99021.0,99015.0,0.004]
[1740149204798,0.15,99021.0,99014.0,0.151492]
[1740149205011,0.15149,99016.0,99015.0,0.01527039]
[1740149205239,0.15,99021.0,98999.0,0.20202]
[1740149205451,0.201979,99020.0,99001.0,0.202018]
[1740149205633,0.15,99021.0,99002.0,0.10264569]
[1740149205868,0.201981,99019.0,99015.0,0.003]
[1740149206068,0.31603085,99016.0,99015.0,0.003]
[1740149206276,0.15,99016.0,98987.0,0.00121212]
[1740149206478,0.15,99016.0,98999.0,0.001]
[1740149206717,0.15,99016.0,99001.0,0.001]
[1740149206928,0.15,99016.0,99002.0,0.11311026]
[1740149207136,0.15,99016.0,99007.0,0.151503]
[1740149207261,0.15,99016.0,99002.0,0.11432218]
[1740149207473,0.15,99016.0,99002.0,0.11311026]
[1740149207697,0.15,99016.0,99002.0,0.01046457]
[1740149208042,0.15,99016.0,98970.0,0.3165673]
[1740149208043,0.15,99016.0,98983.0,0.00121197]
[1740149208257,0.15,99016.0,99011.0,0.151497]